bitfinex/quotes_ETHUSD_20250517
["timestamp","ask_amount","ask_price","bid_price","bid_amount"]
[1747487170359,4.05473167,2466.3,2466.1,8.527]
[1747487171020,4.05422448,2466.6,2466.1,8.527]
[1747487171224,4.05444837,2466.5,2466.1,8.527]
[1747487171448,12.47244837,2466.5,2466.1,8.527]
[1747487171825,4.05449787,2466.4,2466.1,8.527]
[1747487172025,4.05471772,2466.3,2466.1,8.527]
[1747487172228,4.05482118,2466.2,2466.1,8.527]
[1747487173716,4.0550029,2466.1,2465.8,8.527]
[1747487174139,0.7926,2466.4,2465.7,0.7954]
[1747487174343,8.7926,2466.4,2465.7,8.527]
[1747487174550,4.05514266,2466.1,2465.7,8.527]
[1747487174728,4.05519616,2466.0,2465.5,4.05587854]
[1747487174929,4.0553544,2465.9,2465.6,8.527]
[1747487175334,4.05524282,2466.0,2465.6,8.527]
[1747487175850,4.05529791,2466.0,2465.6,8.527]
[1747487176050,4.05484499,2466.2,2465.7,4.05555083]
[1747487176253,4.26735739,2467.0,2465.7,2.05365508]
[1747487176446,4.05443699,2466.5,2466.0,4.05514275]
[1747487176644,4.05444911,2466.5,2466.0,4.05514275]
[1747487177234,4.05451874,2466.4,2465.9,4.05522452]
[1747487177434,4.05451874,2466.4,2465.8,4.05536927]
[1747487177435,4.05469978,2466.3,2465.8,4.05540559]
[1747487177759,0.81092185,2466.3,2465.7,0.7954]
[1747487177967,0.81092185,2466.3,2465.8,8.527]
[1747487178142,4.0549347,2466.2,2465.8,8.527]
[1747487178338,0.81092185,2466.3,2465.8,12.58244329]
[1747487178661,12.42451545,2466.4,2465.9,4.05524237]
[1747487179550,8.37,2466.4,2465.7,0.7954]
[1747487179729,12.42454271,2466.4,2465.8,8.527]
[1747487179926,12.42454271,2466.4,2466.0,4.05514346]
[1747487180137,4.05445618,2466.5,2465.9,4.05520689]
[1747487180336,4.05450045,2466.4,2465.9,4.05531448]
[1747487180543,4.0544096,2466.5,2466.0,4.05513552]
[1747487180749,13.57217208,2466.6,2465.9,4.05522822]
[1747487180944,4.05465918,2466.3,2465.8,12.58239946]
[1747487181142,4.05465918,2466.3,2465.7,4.85098341]
[1747487181143,4.05484372,2466.2,2465.9,8.361]
[1747487181530,4.05524833,2466.0,2465.9,8.361]
[1747487181726,4.05524833,2466.0,2465.7,0.7954]
[1747487181934,4.05524833,2466.0,2465.8,8.361]
[1747487182778,4.05524833,2466.0,2465.7,0.7954]
[1747487182977,4.05534509,2465.9,2465.7,0.7954]
[1747487183149,4.05534509,2465.9,2465.7,8.361]
[1747487183541,4.05534509,2465.9,2465.5,12.05595749]
[1747487183859,4.05555917,2465.8,2465.6,8.361]
[1747487184065,4.05539677,2465.9,2465.6,8.361]
[1747487184242,4.05548546,2465.8,2465.6,8.361]
[1747487185464,4.05564342,2465.7,2465.4,18.2854]
[1747487185688,4.05597241,2465.5,2465.3,8.362]
[1747487186540,4.05588915,2465.6,2465.3,8.362]
[1747487186741,4.05588915,2465.6,2465.1,4.82895549]
[1747487187074,4.05588915,2465.6,2465.2,8.362]
[1747487187478,4.05593912,2465.6,2465.2,8.362]
[1747487187780,4.05593912,2465.6,2465.2,12.4184605]
[1747487187948,4.05593912,2465.6,2465.2,8.362]
[1747487188353,4.05603186,2465.5,2465.2,8.362]
[1747487188670,4.05588201,2465.6,2465.2,8.362]
[1747487189479,8.319,2465.9,2464.9,4.05683118]
[1747487189678,4.05696838,2464.9,2464.4,4.86356171]
[1747487189973,4.05686454,2465.0,2464.5,4.05759259]
[1747487190750,4.05666686,2465.1,2464.5,4.05761817]
[1747487190963,8.98085438,2465.3,2464.4,8.8058]
[1747487191155,4.05692793,2465.0,2464.5,12.42055822]
[1747487191373,4.05692793,2465.0,2464.6,8.363]
[1747487191566,4.05731908,2464.7,2464.5,8.363]
[1747487191774,4.05705438,2464.9,2464.5,8.363]
[1747487191976,8.7718,2465.2,2464.5,8.363]
[1747487192185,4.0571969,2464.8,2464.5,8.363]
[1747487192359,4.05725958,2464.8,2464.4,0.8058]
[1747487192555,0.80972357,2465.1,2464.5,12.42052591]
[1747487192894,4.05679683,2465.0,2464.5,12.42052591]
[1747487193097,4.05698506,2464.9,2464.5,8.363]
[1747487193291,4.05716088,2464.8,2464.4,0.8058]
[1747487193495,4.05716088,2464.8,2464.6,8.364]
[1747487193800,0.80972357,2465.1,2464.5,8.364]
[1747487194100,0.56380023,2465.0,2464.3,8.364]
[1747487194397,4.05732274,2464.7,2464.3,8.364]
[1747487194572,4.0574023,2464.7,2464.3,8.364]
[1747487194761,4.05753203,2464.6,2464.3,8.364]
[1747487194968,12.36063056,2465.1,2464.4,0.7811]
[1747487195187,8.304,2465.1,2464.4,0.7811]
[1747487195390,4.05734994,2464.7,2464.4,0.7811]
[1747487195593,4.05741118,2464.7,2464.2,4.05811057]
[1747487195772,8.312,2465.1,2464.4,0.7811]
[1747487195970,8.0,2465.4,2464.5,0.55]
[1747487195971,0.8266,2465.4,2464.5,0.55]
[1747487196175,8.318,2465.4,2464.7,0.7811]
[1747487196360,8.318,2465.4,2464.6,8.364]
[1747487196361,4.05605998,2465.5,2465.0,0.7811]
[1747487196562,5.72643517,2465.6,2465.2,4.0564629]
[1747487196894,1.67060691,2465.6,2465.2,4.05637284]
[1747487197095,8.80390895,2465.9,2465.2,8.7811]
[1747487197399,0.47990895,2465.9,2465.4,4.05604954]
[1747487197589,4.53533495,2465.9,2465.4,4.05604954]
[1747487197976,4.53533495,2465.9,2465.3,4.05623165]
[1747487198188,4.53533495,2465.9,2465.5,8.365]
[1747487198363,4.055426,2465.9,2465.5,8.365]
[1747487198694,9.99360691,2466.1,2465.2,0.7811]
[1747487198885,4.05588898,2465.6,2465.4,8.364]
[1747487199701,4.05599252,2465.5,2465.2,0.7811]
[1747487199877,4.05587864,2465.6,2465.2,0.7811]
[1747487200059,0.7769,2466.0,2465.2,0.7811]
[1747487200262,4.05564256,2465.8,2465.2,5.75199021]
[1747487200502,4.05572399,2465.7,2465.2,5.75199021]
[1747487200900,4.05540114,2465.9,2465.3,4.05626708]
[1747487201203,4.05572153,2465.7,2465.2,5.75199326]
[1747487201402,4.05555343,2465.8,2465.3,4.05627313]
[1747487201605,4.05557054,2465.8,2465.2,5.75192885]
[1747487201770,4.05562472,2465.8,2465.3,8.364]
[1747487201967,4.05571358,2465.7,2465.3,8.364]
[1747487202170,4.05586411,2465.6,2465.3,8.364]
[1747487202405,13.15406703,2466.0,2465.3,8.364]
[1747487202608,4.05585517,2465.6,2465.3,8.364]
[1747487202786,4.05598574,2465.5,2465.2,9.1451]
[1747487203786,9.0989,2466.0,2465.2,9.1451]
[1747487204204,4.05547895,2465.8,2465.2,9.1451]
[1747487204409,4.05547895,2465.8,2465.3,4.05629323]
[1747487205438,4.0556494,2465.7,2465.3,4.05629323]
[1747487205825,4.05549235,2465.8,2465.2,13.20153702]
[1747487206137,4.05549862,2465.8,2465.3,4.05620253]
[1747487206845,4.05565341,2465.7,2465.3,4.05620253]
[1747487207144,4.05565341,2465.7,2465.2,13.20147354]
[1747487207543,4.0558622,2465.6,2465.2,0.7811]
[1747487207835,4.056052,2465.5,2465.3,8.364]
[1747487208032,4.05589229,2465.6,2465.3,8.364]
[1747487208198,4.05589229,2465.6,2465.2,0.7811]
[1747487208401,4.05600175,2465.5,2465.2,9.1451]
[1747487209411,4.05600175,2465.5,2465.2,0.7811]
[1747487210435,4.05617465,2465.4,2465.2,0.7811]
[1747487210745,4.05600175,2465.5,2465.2,0.7811]
[1747487211337,4.05588207,2465.6,2465.2,0.7811]
[1747487211643,4.05538771,2465.9,2465.4,4.05605835]
[1747487212240,4.83207795,2466.0,2465.5,4.05586213]
[1747487212428,4.05517795,2466.0,2465.5,4.05584402]
[1747487213016,13.97263057,2466.1,2465.2,0.7811]
[1747487213017,9.91760691,2466.1,2465.2,0.7811]
[1747487213215,9.91760691,2466.1,2465.2,4.83750631]
[1747487213427,4.05526167,2466.0,2465.5,4.05595609]
[1747487213849,0.82,2466.4,2465.6,9.0237]
[1747487214051,2.15051586,2466.6,2465.8,0.7667]
[1747487214052,2.97051586,2466.6,2465.8,0.7667]
[1747487214251,1.67060691,2466.6,2466.1,0.7667]
[1747487214554,0.38312474,2466.7,2466.3,4.05465677]
[1747487214718,0.38312474,2466.7,2466.3,4.0544958]
[1747487215257,0.38312474,2466.7,2466.4,4.05448852]
[1747487215618,0.38312474,2466.7,2466.6,4.05416362]
[1747487216016,1.99957925,2466.9,2466.6,4.05416362]
[1747487216652,1.99957925,2466.9,2466.5,4.82091234]
[1747487217868,4.53341869,2467.0,2466.5,4.82091234]
[1747487218069,4.05369669,2466.9,2466.5,0.7667]
[1747487218269,0.81072064,2466.9,2466.5,8.255]
[1747487218422,4.05385017,2466.8,2466.5,8.255]
[1747487218769,4.05403485,2466.7,2466.5,8.255]
[1747487219066,4.05403485,2466.7,2466.4,8.255]
[1747487219266,4.05403485,2466.7,2466.2,4.05472634]
[1747487219419,4.05417943,2466.6,2466.3,8.255]
[1747487219614,4.05417943,2466.6,2466.3,9.48599074]
[1747487219956,4.05406487,2466.7,2466.4,8.255]
[1747487220656,4.05432799,2466.5,2466.3,1.23099074]
[1747487220855,9.0313,2466.7,2465.9,0.8083]
[1747487221056,4.05501767,2466.1,2465.7,26.5783]
[1747487221356,9.0313,2466.7,2465.8,7.11873077]
[1747487221653,13.10232921,2466.7,2466.2,4.05473976]
[1747487221841,8.24,2466.7,2466.3,4.05459076]
[1747487222044,0.8083,2467.0,2466.4,4.05436035]
[1747487222218,12.30246068,2467.1,2466.6,4.86245111]
[1747487222417,4.05346068,2467.1,2466.6,4.86245111]
[1747487222725,4.05334198,2467.1,2466.6,5.75413226]
[1747487222945,4.0533706,2467.1,2466.6,1.69998115]
[1747487223154,4.05379118,2466.9,2466.6,0.8083]
[1747487223387,4.05383571,2466.8,2466.6,0.8083]
[1747487223739,4.05391028,2466.8,2466.5,8.254]
[1747487224364,12.30018332,2467.2,2466.5,8.254]
[1747487224365,4.05401565,2466.7,2466.5,8.254]
[1747487224563,4.05401565,2466.7,2466.2,4.88056616]
[1747487224564,4.05414265,2466.7,2466.2,4.88058861]
[1747487224775,4.05414265,2466.7,2466.3,8.74205886]
[1747487224977,4.05392405,2466.8,2466.3,12.79670601]
[1747487225552,8.232,2467.2,2466.4,4.054347]
[1747487225758,1.67060691,2467.7,2466.5,0.55]
[1747487226050,1.67060691,2467.7,2466.9,4.87940637]
[1747487226051,4.0528637,2467.4,2466.9,4.87940637]
[1747487226262,1.67060691,2467.7,2466.9,4.87940637]
[1747487226263,10.73500691,2467.7,2467.0,8.254]
[1747487226449,4.05252066,2467.6,2467.0,8.254]
[1747487226654,4.05287215,2467.4,2467.0,8.254]
[1747487226978,9.0614,2467.7,2467.0,8.254]
[1747487227278,4.05254184,2467.6,2467.1,0.95677406]
[1747487227465,4.05297547,2467.4,2467.1,0.95677406]
[1747487227782,4.05295448,2467.4,2467.2,8.254]
[1747487228078,4.05301341,2467.3,2467.2,8.254]
[1747487228282,4.05235644,2467.7,2467.1,8.254]
[1747487228445,4.05317769,2467.2,2467.1,8.254]
[1747487228877,4.05308682,2467.3,2467.1,8.254]
[1747487229075,0.8204,2467.9,2467.2,0.8258]
[1747487229284,13.09543475,2467.9,2467.2,9.0788]
[1747487229441,4.05278321,2467.5,2467.2,9.0788]
[1747487229785,4.05292029,2467.4,2467.2,9.0788]
[1747487230086,4.05301341,2467.3,2467.2,9.0788]
[1747487230381,9.0434,2467.9,2467.1,1.75677406]
[1747487230382,4.05333315,2467.2,2467.1,8.253]
[1747487231077,4.05311597,2467.3,2467.1,8.253]
[1747487231478,4.05293209,2467.4,2467.1,8.253]
[1747487231989,4.0525767,2467.6,2467.1,12.30624654]
[1747487232155,4.05252886,2467.6,2467.1,12.30626995]
[1747487232353,4.05252886,2467.6,2467.2,1.230627]
[1747487233488,4.05244984,2467.7,2467.2,5.28377717]
[1747487233687,4.05256724,2467.6,2467.3,0.7779]
[1747487234892,4.05277626,2467.5,2467.3,0.7779]
[1747487235066,1.67060691,2467.8,2467.3,8.252]
[1747487235270,4.05266278,2467.6,2467.3,8.252]
[1747487235470,4.05270519,2467.5,2467.3,8.252]
[1747487236389,4.05270519,2467.5,2467.3,9.48252615]
[1747487237001,4.05277425,2467.5,2467.3,8.252]
[1747487237411,1.67060691,2467.8,2467.3,8.252]
[1747487237580,4.05242923,2467.7,2467.4,0.7779]
[1747487237794,4.05260258,2467.6,2467.4,0.7779]
[1747487238310,4.0526849,2467.5,2467.4,0.7779]
[1747487238465,8.191,2468.0,2467.3,8.251]
[1747487238665,0.89717,2467.9,2467.3,8.251]
[1747487238864,4.05271876,2467.5,2467.3,8.251]
[1747487239462,4.0528758,2467.4,2467.2,8.251]
[1747487239694,4.0528758,2467.4,2467.1,9.0192]
[1747487239890,4.05275655,2467.5,2467.1,0.7682]
[1747487240091,4.05275655,2467.5,2467.1,10.30136849]
[1747487240689,4.0528574,2467.4,2467.1,10.30136849]
[1747487241103,4.05304939,2467.3,2467.2,8.182]
[1747487241297,4.05304939,2467.3,2467.1,8.182]
[1747487241463,4.05330825,2467.2,2467.1,8.182]
[1747487241671,0.7704,2467.2,2466.6,25.691]
[1747487241878,4.05381967,2466.9,2466.6,28.33692]
[1747487242124,4.0537876,2466.9,2466.6,20.15492]
[1747487242300,0.89717,2467.9,2466.8,0.7682]
[1747487242504,4.05260203,2467.6,2467.0,4.05334664]
[1747487242704,4.05276102,2467.5,2467.1,10.30375466]
[1747487243468,4.05283355,2467.5,2467.1,2.12175466]
[1747487243697,4.05283355,2467.5,2467.2,8.182]
[1747487244205,4.0526044,2467.6,2467.2,8.182]
[1747487244367,4.0526044,2467.6,2467.3,8.181]
[1747487244563,4.05268896,2467.5,2467.3,8.181]
[1747487244802,4.05259558,2467.6,2467.3,8.181]
[1747487245009,4.05223713,2467.8,2467.3,8.62887669]
[1747487245180,4.05223713,2467.8,2467.4,0.7938]
[1747487247597,4.05263535,2467.6,2467.5,8.181]
[1747487247799,4.05268789,2467.5,2467.4,8.181]
[1747487248127,4.05260459,2467.6,2467.4,8.181]
[1747487248619,4.05271168,2467.5,2467.3,0.44787669]
[1747487248915,4.05261194,2467.6,2467.3,8.181]
[1747487251012,4.05244387,2467.7,2467.3,8.181]
[1747487251391,14.6828697,2468.1,2467.3,12.23398388]
[1747487251715,4.05262382,2467.6,2467.3,8.181]
[1747487253178,4.05284915,2467.4,2467.3,8.181]
[1747487253678,4.05304588,2467.3,2466.9,4.05366824]
[1747487253906,4.05304588,2467.3,2467.0,8.66845682]
[1747487255116,4.05291107,2467.4,2467.0,8.66845682]
[1747487255811,4.05274904,2467.5,2467.0,0.48745682]
[1747487255812,0.784,2467.2,2467.0,0.48745682]
[1747487255985,4.05324552,2467.2,2467.0,0.48745682]
[1747487256313,4.05310656,2467.3,2467.0,0.48745682]
[1747487256513,4.05292905,2467.4,2467.1,1.27221118]
[1747487256685,4.05304737,2467.3,2467.1,1.27221118]
[1747487257083,4.05334881,2467.1,2466.9,8.181]
[1747487257287,12.18170624,2467.5,2466.6,3.46682]
[1747487257521,4.05379003,2466.9,2466.5,8.181]
[1747487257693,4.05379003,2466.9,2466.4,22.37737551]
[1747487257894,4.05386223,2466.8,2466.5,8.181]
[1747487258396,4.05375697,2466.9,2466.5,8.181]
[1747487259426,4.05388799,2466.8,2466.5,8.182]
[1747487259918,4.05376175,2466.9,2466.5,11.23794742]
[1747487260945,4.05342607,2467.1,2466.5,15.29220733]
[1747487261153,4.05352909,2467.0,2466.6,4.05416362]
[1747487261379,4.83722992,2467.2,2466.7,4.05398126]
[1747487261646,4.05322992,2467.2,2466.7,4.05390976]
[1747487261956,4.05365958,2467.0,2466.8,8.182]
[1747487262754,4.053368,2467.1,2466.7,0.8209]
[1747487262959,4.053368,2467.1,2466.8,8.182]
[1747487263313,4.05370475,2466.9,2466.5,3.81474742]
[1747487263528,4.05370475,2466.9,2466.5,11.99674742]
[1747487263749,4.05370475,2466.9,2466.6,3.35531434]
[1747487263916,4.05357847,2467.0,2466.6,3.35531434]
[1747487264119,4.0535354,2467.0,2466.6,7.40934713]
[1747487264422,4.05342426,2467.1,2466.6,15.59144575]
[1747487264637,4.0531987,2467.2,2466.6,15.59144575]
[1747487264638,4.05352932,2467.0,2466.6,15.59136477]
[1747487264821,4.05326844,2467.2,2466.7,5.68900059]
[1747487265033,4.05351241,2467.0,2466.7,1.63501648]
[1747487265940,4.05343159,2467.1,2466.7,1.63501648]
[1747487266133,4.05352639,2467.0,2466.7,1.63501648]
[1747487266315,4.05367189,2466.9,2466.7,1.63501648]
[1747487266520,4.05322803,2467.2,2466.7,5.68890212]
[1747487266722,4.05334308,2467.1,2466.8,0.90442165]
[1747487267951,4.05367059,2466.9,2466.6,3.35531434]
[1747487268255,4.05380934,2466.9,2466.5,8.182]
[1747487269116,4.05380934,2466.9,2466.3,4.05461557]
[1747487269117,4.88610886,2466.8,2466.1,4.05485948]
[1747487269325,4.05424348,2466.6,2466.2,8.182]
[1747487269621,4.05449237,2466.4,2466.3,1.22368595]
[1747487269821,4.05449237,2466.4,2466.2,8.182]
[1747487270066,4.05399927,2466.7,2466.0,0.8079]
[1747487270243,4.05493152,2466.2,2465.7,21.5605621]
[1747487270425,4.05493152,2466.2,2465.8,8.182]
[1747487270952,4.05526784,2466.0,2465.8,8.182]
[1747487271359,4.05526784,2466.0,2465.7,26.4199]
[1747487271558,4.05564342,2465.7,2465.3,8.107]
[1747487271722,4.88776726,2465.8,2465.3,8.107]
[1747487272544,4.05567198,2465.7,2465.3,8.107]
[1747487272738,4.05567198,2465.7,2465.2,4.05637126]
[1747487272943,4.05572706,2465.7,2465.2,12.16343601]
[1747487273139,4.05572706,2465.7,2465.3,1.70278891]
[1747487273456,4.88768602,2465.8,2465.3,1.70278891]
[1747487273457,4.05583385,2465.6,2465.3,1.70278891]
[1747487273633,4.05570869,2465.7,2465.3,1.70278891]
[1747487273835,4.05581809,2465.6,2465.3,1.70278891]
[1747487274265,4.05602663,2465.5,2465.2,8.107]
[1747487274622,4.05570798,2465.7,2465.2,8.107]
[1747487275030,4.05580791,2465.6,2465.2,8.107]
[1747487276325,4.05580791,2465.6,2465.1,4.86450891]
[1747487276735,4.05597276,2465.5,2465.1,8.9159]
[1747487277240,4.05589029,2465.6,2465.1,12.97251346]
[1747487277961,4.05599532,2465.5,2465.1,8.9159]
[1747487279026,4.05677194,2465.1,2464.7,0.7509]
[1747487279635,4.05698176,2464.9,2464.7,0.7509]
[1747487279936,4.05705201,2464.9,2464.5,8.8599]
[1747487280665,4.05698445,2464.9,2464.5,8.8599]
[1747487280864,4.05698445,2464.9,2464.5,0.7509]
[1747487281069,4.05716793,2464.8,2464.5,0.7509]
[1747487281666,4.8305788,2465.2,2464.2,0.7509]
[1747487281830,4.8305788,2465.2,2464.1,8.11]
[1747487281831,4.05761884,2464.5,2464.1,8.11]
[1747487282034,4.05781899,2464.4,2464.1,8.11]
[1747487282238,4.05761884,2464.5,2464.1,8.11]
[1747487282239,4.05799363,2464.3,2464.1,8.11]
[1747487282433,4.05856064,2464.0,2463.5,4.81016482]
[1747487283053,0.7741,2464.6,2464.1,4.05827133]
[1747487283054,4.83159568,2464.6,2464.1,4.05827133]
[1747487283367,0.7741,2464.6,2464.1,4.05817403]
[1747487283672,4.8315658,2464.6,2464.1,4.05817403]
[1747487283973,4.05762515,2464.5,2464.0,12.16937426]
[1747487284267,4.05762515,2464.5,2464.1,8.111]
[1747487284566,4.05762515,2464.5,2464.0,4.05839517]
[1747487284773,4.05762515,2464.5,2464.1,8.111]
[1747487285067,4.83161402,2464.6,2464.1,12.16925913]
[1747487285269,8.097,2464.7,2464.2,0.7509]
[1747487285564,0.7741,2465.0,2464.2,0.7509]
[1747487285768,12.15100804,2464.9,2464.4,4.05766689]
[1747487286066,12.15200804,2464.9,2464.4,4.05766689]
[1747487286765,8.095,2464.9,2464.2,0.7509]
[1747487287279,4.8317976,2464.5,2464.1,8.112]
[1747487287477,4.83179416,2464.5,2464.1,8.112]
[1747487287693,0.7741,2464.5,2463.9,0.7509]
[1747487287837,4.05809606,2464.3,2463.9,8.112]
[1747487288037,0.88899789,2464.3,2463.8,8.112]
[1747487288459,4.05838439,2464.1,2463.8,8.112]
[1747487288664,4.05844627,2464.0,2463.8,8.112]
[1747487288846,4.86853405,2464.0,2463.8,8.112]
[1747487289050,4.05860627,2463.9,2463.8,8.112]
[1747487289259,4.05860627,2463.9,2463.5,8.113]
[1747487289573,4.05860627,2463.9,2463.4,4.05934217]
[1747487289774,4.05899783,2463.7,2463.3,0.7567]
[1747487289965,4.0590371,2463.7,2463.3,0.7567]
[1747487290341,8.101,2463.8,2463.4,4.05932322]
[1747487290663,0.81,2464.0,2463.3,4.81623586]
[1747487290989,4.86850547,2464.0,2463.5,4.05918115]
[1747487291153,0.81,2464.0,2463.3,0.7567]
[1747487291351,4.0589492,2463.7,2463.3,0.7567]
[1747487291536,4.0589492,2463.7,2463.3,8.8697]
[1747487291743,4.0589492,2463.7,2463.3,0.7567]
[1747487291949,4.86912621,2463.6,2463.2,0.005]
[1747487292287,4.86918109,2463.6,2463.2,0.005]
[1747487292786,4.059353,2463.5,2463.2,0.005]
[1747487292999,4.05955902,2463.4,2463.2,0.005]
[1747487293157,4.05959485,2463.3,2463.2,0.005]
[1747487293359,12.17834637,2463.5,2463.2,0.005]
[1747487293553,4.0595037,2463.4,2463.2,0.005]
[1747487293787,4.05959485,2463.3,2463.2,0.005]
[1747487293969,12.17831275,2463.5,2463.2,0.005]
[1747487293970,8.119,2463.5,2463.2,0.005]
[1747487294182,4.05926527,2463.5,2463.2,0.005]
[1747487294491,4.05943005,2463.4,2463.2,0.005]
[1747487294688,4.05932203,2463.5,2463.2,0.005]
[1747487294902,4.86917752,2463.6,2463.2,0.005]
[1747487295067,12.98917752,2463.6,2463.2,0.005]
[1747487295370,4.05926605,2463.5,2463.2,0.005]
[1747487295564,4.05927816,2463.5,2463.2,0.005]
[1747487296070,4.05947162,2463.4,2463.2,0.005]
[1747487296389,12.98210785,2463.6,2463.2,0.005]
[1747487296560,4.05929474,2463.5,2463.2,0.005]
[1747487296965,4.05949978,2463.4,2463.2,0.005]
[1747487297173,4.85039485,2463.3,2463.2,0.005]
[1747487297370,4.05918398,2463.6,2463.2,0.005]
[1747487297698,8.118,2463.5,2463.2,0.005]
[1747487297856,2.46140691,2463.7,2463.3,4.05949088]
[1747487298051,9.78660691,2463.7,2463.3,4.05949088]
[1747487298455,1.67060691,2463.7,2463.3,4.94872349]
[1747487299271,4.05887588,2463.8,2463.3,4.94872349]
[1747487299498,4.05887588,2463.8,2463.3,4.94870208]
[1747487299794,0.7568,2464.4,2463.9,4.05850153]
[1747487300104,4.256748,2464.6,2464.0,0.7818]
[1747487300259,16.43428259,2464.6,2464.0,4.94806892]
[1747487300595,4.05808107,2464.3,2464.0,8.116]
[1747487300897,4.05808107,2464.3,2463.7,0.7818]
[1747487300898,4.05836433,2464.1,2463.7,0.7818]
[1747487301100,0.7568,2464.3,2463.7,12.95661532]
[1747487301306,4.05823702,2464.2,2463.7,12.95661532]
[1747487301503,4.05823702,2464.2,2463.7,15.05227685]
[1747487301706,0.7568,2464.3,2463.7,15.05227685]
[1747487301707,4.8148272,2464.3,2463.7,15.05227685]
[1747487301920,4.05811632,2464.2,2463.7,15.05227685]
[1747487302568,4.05818037,2464.2,2463.7,15.05239391]
[1747487302796,0.7568,2464.3,2463.8,4.05865468]
[1747487302965,5.082948,2464.6,2463.9,1.50521162]
[1747487303367,5.72790976,2464.7,2464.2,4.83112959]
[1747487303612,1.67060691,2464.7,2464.3,4.05780421]
[1747487303765,1.67060691,2464.7,2464.2,12.95612703]
[1747487303966,0.8262,2464.9,2464.3,4.05794679]
[1747487304185,12.17889895,2465.0,2464.5,4.05761319]
[1747487304830,12.17880877,2465.0,2464.2,0.7731]
[1747487304969,4.05750983,2464.6,2464.3,8.125]
[1747487307112,4.05721256,2464.8,2464.3,12.18293331]
[1747487307320,0.8262,2464.9,2464.3,8.125]
[1747487307510,5.72751981,2465.0,2464.5,4.05760977]
[1747487307691,5.72751981,2465.0,2464.4,1.5856]
[1747487307692,4.05722054,2464.8,2464.4,1.5856]
[1747487307886,4.05756418,2464.6,2464.4,8.9375]
[1747487308104,4.05756418,2464.6,2464.3,8.125]
[1747487308304,4.88354008,2464.7,2464.3,8.125]
[1747487308492,4.88354008,2464.7,2464.3,12.18293331]
[1747487308693,4.88354008,2464.7,2464.3,8.125]
[1747487308895,0.8262,2464.7,2464.3,12.18290953]
[1747487309216,12.16820327,2464.8,2464.3,12.18290953]
[1747487309415,12.16819141,2464.8,2464.3,8.125]
[1747487309582,12.16819141,2464.8,2464.3,12.18289766]
[1747487309982,12.16819141,2464.8,2464.3,13.88429934]
[1747487310211,4.0572005,2464.8,2464.3,13.8842592]
[1747487310418,12.98624918,2464.9,2464.3,9.82640168]
[1747487310604,4.05712991,2464.8,2464.4,4.05769026]
[1747487310786,4.05712991,2464.8,2464.3,13.88430471]
[1747487311496,4.05712991,2464.8,2464.4,4.05777722]
[1747487311678,4.05722293,2464.8,2464.3,13.88429066]
[1747487312218,4.05777846,2464.5,2464.0,4.05842321]
[1747487312523,4.05754601,2464.6,2464.1,4.05822564]
[1747487312814,4.05754601,2464.6,2464.2,0.7731]
[1747487313820,4.05765665,2464.5,2464.1,8.124]
[1747487314117,4.05824243,2464.2,2463.8,8.8971]
[1747487314414,0.40576567,2464.5,2463.8,8.8971]
[1747487314415,4.05840162,2464.1,2463.8,8.8971]
[1747487314615,0.8262,2464.2,2463.8,8.124]
[1747487314782,4.05846704,2464.0,2463.8,8.124]
[1747487315220,4.05846704,2464.0,2463.6,8.8971]
[1747487315413,4.05834619,2464.1,2463.6,14.65770325]
[1747487315615,8.9312,2464.2,2463.6,14.65770325]
[1747487315921,12.16313353,2464.2,2463.7,4.05884914]
[1747487316317,12.16314724,2464.2,2463.6,1.70156661]
[1747487316524,4.0583578,2464.1,2463.6,4.0591005]
[1747487317004,4.05846093,2464.0,2463.5,12.18418084]
[1747487317207,0.8262,2464.4,2463.5,12.18418084]
[1747487317208,4.05834813,2464.1,2463.6,4.05904466]
[1747487317418,4.05819604,2464.2,2463.7,4.05891757]
[1747487317802,4.05819604,2464.2,2463.6,4.05904466]
[1747487317999,12.14908242,2464.3,2463.8,4.05865775]
[1747487318228,12.14908242,2464.3,2463.8,4.85385775]
[1747487318522,4.05808242,2464.3,2463.8,4.85385775]
[1747487318718,12.969054,2464.4,2463.8,4.85385775]
[1747487318920,4.05771233,2464.5,2464.0,4.05840205]
[1747487319113,12.146475,2464.6,2464.1,4.05819708]
[1747487319499,4.05763111,2464.5,2464.0,8.125]
[1747487320432,4.05780962,2464.4,2463.9,4.70629809]
[1747487320585,12.14648768,2464.6,2463.8,8.7952]
[1747487320792,4.0581898,2464.2,2463.9,8.125]
[1747487321233,4.05813163,2464.2,2463.9,8.125]
[1747487322725,4.0576185,2464.5,2463.9,12.18349582]
[1747487322933,4.05779293,2464.4,2463.9,12.18346377]
[1747487323096,4.05761817,2464.5,2463.9,13.64375977]
[1747487323296,4.05785205,2464.4,2463.9,13.64375977]
[1747487324027,4.05785205,2464.4,2464.0,4.05843174]
[1747487324230,4.05769507,2464.5,2464.0,4.05843174]
[1747487324413,4.05795487,2464.3,2463.9,9.585296]
[1747487324742,4.05771168,2464.5,2464.0,5.50234547]
[1747487324902,6.48310193,2464.7,2464.1,4.05827417]
[1747487325100,13.78991445,2464.7,2464.3,4.05787458]
[1747487325308,9.73260691,2464.7,2464.2,0.7669]
[1747487325603,13.78997832,2464.7,2464.2,4.82492098]
[1747487325916,1.67060691,2464.7,2464.4,4.05778095]
[1747487326100,1.67060691,2464.7,2464.3,4.05782843]
[1747487327107,5.72792036,2464.7,2464.2,6.65762599]
[1747487327336,5.72792036,2464.7,2464.2,8.125]
[1747487327337,4.05794749,2464.3,2464.2,8.125]
[1747487327518,4.05794749,2464.3,2464.0,8.125]
[1747487328027,4.05794749,2464.3,2463.9,2.227196]
[1747487328235,4.0580289,2464.3,2463.9,10.352196]
[1747487328735,4.05959485,2463.3,2462.9,1.29157534]
[1747487329032,34.86173705,2463.3,2462.9,1.29157534]
[1747487329207,34.79526429,2463.3,2462.9,1.29157534]
[1747487329609,4.0609137,2462.5,2461.9,0.005]
[1747487329810,4.06124355,2462.3,2461.9,0.005]
[1747487330029,4.06115505,2462.4,2461.9,0.005]
[1747487330211,8.246,2463.0,2462.4,4.06099351]
[1747487330409,4.06037468,2462.9,2462.3,12.1861979]
[1747487330605,4.0604377,2462.8,2462.3,9.74976577]
[1747487330808,4.0604377,2462.8,2462.4,8.125]